fUSD/lending_fUSD_20260118
["ID","MTS","AMOUNT","RATE_DAILY","PERIOD"]
[402534652,1768701049669,-1999.623966,0.00016438,2]
[402534653,1768701049678,-1999.623966,0.00016438,2]
[402534654,1768701049688,-1999.623966,0.00016438,2]
[402534655,1768701049697,-1999.623966,0.00016438,2]
[402534656,1768701049707,-1999.623966,0.00016438,2]
[402534657,1768701049716,-1999.623966,0.00016438,2]
[402534658,1768701049726,-1999.623966,0.00016438,2]
[402534659,1768701049735,-1999.623966,0.00016438,2]
[402534660,1768701049744,-1999.623966,0.00016438,2]
[402534661,1768701049755,-1999.623966,0.00016438,2]
[402534662,1768701049765,-1999.623966,0.00016438,2]
[402534663,1768701049774,-151.0,0.00016438,2]
[402534664,1768701049784,-280.397232,0.00016438,2]
[402534665,1768701049793,-151.0,0.00016438,2]
[402534666,1768701049803,-151.0,0.00016438,2]
[402534667,1768701049814,-151.0,0.00016438,2]
[402534668,1768701049824,-1054.529874,0.00016438,2]
[402534669,1768701049834,-1054.529874,0.00016438,2]
[402534670,1768701049843,-1054.529874,0.00016438,2]
[402534671,1768701049854,-1054.529874,0.00016438,2]
[402534672,1768701049865,-1054.529874,0.00016438,2]
[402534673,1768701049875,-1054.529874,0.00016438,2]
[402534674,1768701049885,-1054.529874,0.00016438,2]
[402534675,1768701049894,-1054.529874,0.00016438,2]
[402534676,1768701049904,-848.625997,0.00016438,2]
[402534677,1768701049913,-639.63573614,0.00016438,2]
[402534678,1768701051362,-151.0,0.00015775,2]
[402534679,1768701051372,-414.89413786,0.00016438,2]
[402534680,1768701051383,-566.34155845,0.00016438,2]
[402534681,1768701051451,-282.28443855,0.00016438,2]
[402534682,1768701051461,-848.625997,0.00016438,2]
[402534683,1768701051471,-1054.529874,0.00016438,2]
[402534684,1768701051480,-1054.529874,0.00016438,2]
[402534685,1768701051489,-848.625997,0.00016438,2]
[402534686,1768701051498,-1054.529874,0.00016438,2]
[402534687,1768701051508,-848.625997,0.00016438,2]
[402534688,1768701051519,-848.625997,0.00016438,2]
[402534689,1768701051529,-848.625997,0.00016438,2]
[402534690,1768701051539,-848.625997,0.00016438,2]
[402534691,1768701051550,-848.625997,0.00016438,2]
[402534692,1768701051560,-848.625997,0.00016438,2]
[402534693,1768701051570,-848.625997,0.00016438,2]
[402534694,1768701051579,-848.625997,0.00016438,2]
[402534695,1768701051588,-476.594437,0.00016438,2]
[402534696,1768701051597,-151.0,0.00016438,2]
[402534697,1768701051607,-476.594437,0.00016438,2]
[402534698,1768701051616,-151.0,0.00016438,2]
[402534699,1768701051626,-476.594437,0.00016438,2]
[402534700,1768701051635,-151.0,0.00016438,2]
[402534701,1768701051645,-476.594437,0.00016438,2]
[402534702,1768701051654,-476.594437,0.00016438,2]
[402534703,1768701051664,-476.594437,0.00016438,2]
[402534704,1768701051673,-476.594437,0.00016438,2]
[402534705,1768701051683,-476.594437,0.00016438,2]
[402534706,1768701051692,-476.594437,0.00016438,2]
[402534707,1768701051702,-3134.37211,0.00016438,2]
[402534708,1768701051711,-151.0,0.00016438,2]
[402534709,1768701051721,-3134.37211,0.00016438,2]
[402534710,1768701051730,-476.594437,0.00016438,2]
[402534711,1768701051740,-188.699403,0.00016438,2]
[402534712,1768701051750,-3134.37211,0.00016438,2]
[402534713,1768701051761,-476.594437,0.00016438,2]
[402534714,1768701051771,-476.594437,0.00016438,2]
[402534715,1768701051780,-3134.37211,0.00016438,2]
[402534716,1768701051790,-3134.37211,0.00016438,2]
[402534717,1768701051800,-3134.37211,0.00016438,2]
[402534718,1768701051810,-151.0,0.00016438,2]
[402534719,1768701051819,-157.054902,0.00016438,2]
[402534720,1768701051829,-3134.37211,0.00016438,2]
[402534721,1768701051838,-3134.37211,0.00016438,2]
[402534722,1768701051847,-3134.37211,0.00016438,2]
[402534723,1768701051856,-3134.37211,0.00016438,2]
[402534724,1768701051867,-3134.37211,0.00016438,2]
[402534725,1768701051876,-3134.37211,0.00016438,2]
[402534726,1768701051886,-151.0,0.00016438,2]
[402534727,1768701051895,-151.0,0.00016438,2]
[402534728,1768701051904,-151.0,0.00016438,2]
[402534729,1768701051914,-151.0,0.00016438,2]
[402534730,1768701051923,-151.0,0.00016438,2]
[402534731,1768701051933,-151.0,0.00016438,2]
[402534732,1768701051945,-1018.427586,0.00016438,2]
[402534733,1768701051955,-151.0,0.00016438,2]
[402534734,1768701051967,-1018.427586,0.00016438,2]
[402534735,1768701051976,-1759.5543,0.00016438,2]
[402534736,1768701051986,-216.124818,0.00016438,2]
[402534737,1768701051995,-1018.427586,0.00016438,2]
[402534738,1768701052005,-1759.5543,0.00016438,2]
[402534739,1768701052015,-151.0,0.00016438,2]
[402534740,1768701052025,-1759.5543,0.00016438,2]
[402534741,1768701052034,-154.762257,0.00016438,2]
[402534742,1768701052044,-1018.427586,0.00016438,2]
[402534743,1768701052053,-1018.427586,0.00016438,2]
[402534744,1768701052063,-1759.5543,0.00016438,2]
[402534745,1768701052072,-1018.427586,0.00016438,2]
[402534746,1768701052082,-1759.5543,0.00016438,2]
[402534747,1768701052092,-1759.5543,0.00016438,2]
[402534748,1768701052101,-1218.041822,0.00016438,2]
[402534749,1768701052111,-200.0,0.00016438,4]
[402534750,1768701052120,-200.0,0.00016438,4]
[402534751,1768701052130,-150.0,0.0001645,2]
[402534752,1768701052139,-150.0,0.00016456,2]
[402534753,1768701052149,-150.0,0.00016467,2]
[402534754,1768701052158,-150.0,0.00016475,2]
[402534755,1768701052168,-150.0,0.0001648,2]
[402534756,1768701052178,-150.0,0.00016484,2]
[402534757,1768701052188,-179.52,0.00016484,2]
[402534758,1768701052198,-150.0,0.00016486,2]
[402534759,1768701052208,-500.0,0.000165,2]
[402534760,1768701052219,-1076.47,0.000165,2]
[402534761,1768701052228,-300.0,0.00016504,2]
[402534762,1768701052241,-150.0,0.00016505,2]
[402534763,1768701052250,-157.062568,0.00016505,2]
[402534764,1768701052261,-194.161872,0.00016505,2]
[402534765,1768701052271,-162.377635,0.00016505,2]
[402534766,1768701052281,-162.377635,0.00016505,2]
[402534767,1768701052290,-162.377635,0.00016505,2]
[402534768,1768701052299,-162.377635,0.00016505,2]
[402534769,1768701052309,-151.0,0.00016505,2]
[402534770,1768701052320,-151.0,0.00016505,2]
[402534771,1768701052329,-16506.2107053,0.00016509,2]
[402534772,1768701052339,-556.9,0.00016515,2]
[402534773,1768701052348,-150.0,0.00016515,2]
[402534774,1768701052358,-150.0,0.00016523,2]
[402534775,1768701052367,-150.0,0.00016528,2]
[402534776,1768701052377,-150.0,0.00016529,2]
[402534777,1768701052387,-150.0,0.00016544,2]
[402534778,1768701052396,-150.0,0.00016544,2]
[402534779,1768701052405,-150.0,0.00016544,2]
[402534780,1768701052415,-150.0,0.00016553,2]
[402534781,1768701052424,-150.0,0.00016559,2]
[402534782,1768701052434,-150.0,0.00016563,2]
[402534783,1768701052443,-150.0,0.00016578,2]
[402534784,1768701052819,-150.0,0.00016587,2]
[402534785,1768701052830,-307.41120212,0.00016595,2]
[402534786,1768701052840,-2381.85609984,0.00016596,2]
[402534787,1768701052849,-6285.75593212,0.00016596,2]
[402534788,1768701052859,-11088.81853872,0.00016596,2]
[402534789,1768701052869,-151.0,0.00016596,2]
[402534790,1768701052879,-151.0,0.00016596,2]
[402534791,1768701052889,-151.0,0.00016596,2]
[402534792,1768701052900,-151.0,0.00016596,2]
[402534793,1768701052909,-151.0,0.00016596,2]
[402534794,1768701052919,-151.0,0.00016596,2]
[402534795,1768701052929,-254.77563431,0.00016596,2]
[402534796,1768701052939,-557785.46929596,0.000166,2]
[402534797,1768701052949,-150.0,0.00016601,2]
[402534798,1768701052958,-150.0,0.00016602,2]
[402534799,1768701052968,-19055.69468425,0.00016604,2]
[402534800,1768701052978,-476.594437,0.00016604,2]
[402534801,1768701052988,-476.594437,0.00016604,2]
[402534802,1768701052997,-279.116326,0.00016604,2]
[402534803,1768701053007,-476.594437,0.00016604,2]
[402534804,1768701053017,-476.594437,0.00016604,2]
[402534805,1768701053028,-151.0,0.00016604,2]
[402534806,1768701053038,-1018.427586,0.00016604,2]
[402534807,1768701053048,-1759.5543,0.00016604,2]
[402534808,1768701053058,-1018.427586,0.00016604,2]
[402534809,1768701053068,-1135.36,0.00016605,2]
[402534810,1768701053077,-150.0,0.00016606,2]
[402534811,1768701053087,-5268.17964723,0.00016612,2]
[402534812,1768701053097,-150.0,0.00016612,2]
[402534813,1768701053107,-150.0,0.00016625,2]
[402534814,1768701053117,-510.0,0.00016625,2]
[402534815,1768701053129,-150.0,0.00016626,2]
[402534816,1768701053140,-500.0,0.00016632,2]
[402534817,1768701053151,-150.0,0.00016632,2]
[402534818,1768701053161,-150.0,0.00016633,2]
[402534819,1768701053171,-16506.2107053,0.0001664,2]
[402534820,1768701053182,-150.0,0.0001665,2]
[402534821,1768701053192,-491.33634829,0.0001665,2]
[402534822,1768701053202,-321.0,0.00016658,4]
[402534823,1768701053212,-150.0,0.00016658,2]
[402534824,1768701053222,-150.0,0.00016658,2]
[402534825,1768701053233,-150.0,0.00016658,2]
[402534826,1768701053247,-150.0,0.00016658,2]
[402534827,1768701053258,-150.0,0.00016658,2]
[402534828,1768701053267,-286.01190174,0.00016661,2]
[402534829,1768701053278,-150.0,0.00016675,2]
[402534830,1768701053288,-150.0,0.00016681,2]
[402534831,1768701053297,-150.0,0.00016685,2]
[402534832,1768701053308,-500.0,0.00016687,2]
[402534833,1768701053318,-166.67,0.00016692,2]
[402534834,1768701053328,-150.0,0.00016699,2]
[402534835,1768701053338,-150.0,0.00016708,2]
[402534836,1768701053348,-508.48556466,0.00016711,2]
[402534837,1768701053357,-300.0,0.00016711,2]
[402534838,1768701053367,-300.0,0.00016711,2]
[402534839,1768701053376,-151.0,0.00016712,2]
[402534840,1768701053386,-151.0,0.00016712,2]
[402534841,1768701053395,-151.0,0.00016712,2]
[402534842,1768701053405,-151.0,0.00016712,2]
[402534843,1768701053414,-402.75557,0.00016712,2]
[402534844,1768701053424,-402.75557,0.00016712,2]
[402534845,1768701053434,-213.491679,0.00016712,2]
[402534846,1768701053443,-402.75557,0.00016712,2]
[402534847,1768701053452,-151.0,0.00016712,2]
[402534848,1768701053462,-213.491679,0.00016712,2]
[402534849,1768701053471,-151.0,0.00016712,2]
[402534850,1768701053495,-151.0,0.00016712,2]
[402534851,1768701053506,-402.75557,0.00016712,2]
[402534852,1768701053516,-213.491679,0.00016712,2]
[402534853,1768701053527,-151.0,0.00016712,2]
[402534854,1768701053538,-213.491679,0.00016712,2]
[402534855,1768701053548,-151.0,0.00016712,2]
[402534856,1768701053558,-1639.576858,0.00016712,2]
[402534857,1768701053568,-151.0,0.00016712,2]
[402534858,1768701053578,-373.873446,0.00016712,2]
[402534859,1768701053589,-1639.576858,0.00016712,2]
[402534860,1768701053599,-151.0,0.00016712,2]
[402534861,1768701053609,-1639.576858,0.00016712,2]
[402534862,1768701053619,-151.0,0.00016712,2]
[402534863,1768701053629,-1639.576858,0.00016712,2]
[402534864,1768701053638,-1389.358836,0.00016712,2]
[402534865,1768701053648,-1389.358836,0.00016712,2]
[402534866,1768701053658,-373.873446,0.00016712,2]
[402534867,1768701053668,-1389.358836,0.00016712,2]
[402534868,1768701053678,-373.873446,0.00016712,2]
[402534869,1768701053689,-1389.358836,0.00016712,2]
[402534870,1768701053699,-373.873446,0.00016712,2]
[402534871,1768701053710,-1539.67261,0.00016712,2]
[402534872,1768701053720,-1539.67261,0.00016712,2]
[402534873,1768701053730,-1539.67261,0.00016712,2]
[402534874,1768701053740,-151.0,0.00016712,2]
[402534875,1768701053750,-151.0,0.00016712,2]
[402534876,1768701053761,-1539.67261,0.00016712,2]
[402534877,1768701053772,-151.0,0.00016712,2]
[402534878,1768701053782,-151.0,0.00016712,2]
[402534879,1768701053792,-151.0,0.00016712,2]
[402534880,1768701053802,-246.675139,0.00016712,2]
[402534881,1768701053812,-246.675139,0.00016712,2]
[402534882,1768701053822,-246.675139,0.00016712,2]
[402534883,1768701053831,-246.675139,0.00016712,2]
[402534884,1768701053847,-195.257862,0.00016712,2]
[402534885,1768701053858,-151.0,0.00016712,2]
[402534886,1768701053869,-151.0,0.00016712,2]
[402534887,1768701053879,-151.0,0.00016712,2]
[402534888,1768701053890,-151.0,0.00016712,2]
[402534889,1768701053900,-151.0,0.00016712,2]
[402534890,1768701053910,-151.0,0.00016712,2]
[402534891,1768701053921,-151.0,0.00016712,2]
[402534892,1768701053932,-1706.637944,0.00016712,2]
[402534893,1768701053942,-158.232569,0.00016712,2]
[402534894,1768701053952,-1706.637944,0.00016712,2]
[402534895,1768701053963,-1706.637944,0.00016712,2]
[402534896,1768701053974,-151.0,0.00016712,2]
[402534897,1768701053984,-1706.637944,0.00016712,2]
[402534898,1768701053994,-2186.029181,0.00016712,2]
[402534899,1768701054005,-2186.029181,0.00016712,2]
[402534900,1768701054016,-151.0,0.00016712,2]
[402534901,1768701054027,-2186.029181,0.00016712,2]
[402534902,1768701054037,-205.835696,0.00016712,2]
[402534903,1768701054047,-2186.029181,0.00016712,2]
[402534904,1768701054058,-329.289585,0.00016712,2]
[402534905,1768701054068,-329.289585,0.00016712,2]
[402534906,1768701054078,-329.289585,0.00016712,2]
[402534907,1768701054088,-329.289585,0.00016712,2]
[402534908,1768701054099,-455.437703,0.00016712,2]
[402534909,1768701054109,-455.437703,0.00016712,2]
[402534910,1768701054119,-151.0,0.00016712,2]
[402534911,1768701054130,-455.437703,0.00016712,2]
[402534912,1768701054140,-455.437703,0.00016712,2]
[402534913,1768701054149,-540.318519,0.00016712,2]
[402534914,1768701054160,-540.318519,0.00016712,2]
[402534915,1768701054170,-540.318519,0.00016712,2]
[402534916,1768701054181,-540.318519,0.00016712,2]
[402534917,1768701054191,-1834.734033,0.00016712,2]
[402534918,1768701054206,-1834.734033,0.00016712,2]
[402534919,1768701054217,-1834.734033,0.00016712,2]
[402534920,1768701054227,-151.0,0.00016712,2]
[402534921,1768701054245,-1834.734033,0.00016712,2]
[402534922,1768701054255,-151.0,0.00016712,2]
[402534923,1768701054265,-1607.061383,0.00016712,2]
[402534924,1768701054275,-1607.061383,0.00016712,2]
[402534925,1768701054285,-151.0,0.00016712,2]
[402534926,1768701054295,-1607.061383,0.00016712,2]
[402534927,1768701054305,-151.0,0.00016712,2]
[402534928,1768701054315,-1607.061383,0.00016712,2]
[402534929,1768701054325,-153.347393,0.00016712,2]
[402534930,1768701054335,-151.0,0.00016712,2]
[402534931,1768701054346,-151.0,0.00016712,2]
[402534932,1768701054356,-151.0,0.00016712,2]
[402534933,1768701054366,-151.0,0.00016712,2]
[402534934,1768701054376,-151.0,0.00016712,2]
[402534935,1768701054386,-151.0,0.00016712,2]
[402534936,1768701054396,-156.885394,0.00016712,2]
[402534937,1768701054406,-204.097418,0.00016712,2]
[402534938,1768701054416,-151.0,0.00016712,2]
[402534939,1768701054428,-151.0,0.00016712,2]
[402534940,1768701054440,-204.097418,0.00016712,2]
[402534941,1768701054451,-181.920698,0.00016712,2]
[402534942,1768701054462,-151.0,0.00016712,2]
[402534943,1768701054472,-204.097418,0.00016712,2]
[402534944,1768701054484,-181.920698,0.00016712,2]
[402534945,1768701054495,-204.097418,0.00016712,2]
[402534946,1768701054505,-1941.114919,0.00016712,2]
[402534947,1768701054515,-181.920698,0.00016712,2]
[402534948,1768701054525,-181.920698,0.00016712,2]
[402534949,1768701054535,-151.0,0.00016712,2]
[402534950,1768701054545,-1941.114919,0.00016712,2]
[402534951,1768701054555,-1941.114919,0.00016712,2]
[402534952,1768701054570,-1941.114919,0.00016712,2]
[402534953,1768701054580,-151.0,0.00016712,2]
[402534954,1768701054590,-151.0,0.00016712,2]
[402534955,1768701054600,-151.0,0.00016712,2]
[402534956,1768701054610,-304.220477,0.00016712,2]
[402534957,1768701054619,-304.220477,0.00016712,2]
[402534958,1768701054629,-304.220477,0.00016712,2]
[402534959,1768701054639,-304.220477,0.00016712,2]
[402534960,1768701054649,-151.0,0.00016712,2]
[402534961,1768701054660,-1020.52130826,0.00016712,2]
[402534962,1768701054670,-500.0,0.00016712,2]
[402534963,1768701054680,-541.02,0.00016712,2]
[402534964,1768701054690,-511.64252877,0.00016712,2]
[402534965,1768701054700,-500.0,0.00016712,2]
[402534966,1768701054710,-500.0,0.00016712,2]
[402534967,1768701054719,-684.55,0.00016712,2]
[402534968,1768701054730,-548.5,0.00016712,2]
[402534969,1768701054740,-599.69,0.00016712,2]
[402534970,1768701054750,-500.0,0.00016712,2]
[402534971,1768701054760,-500.0,0.00016712,2]
[402534972,1768701054769,-511.59113891,0.00016712,2]
[402534973,1768701054779,-500.0,0.00016712,2]
[402534974,1768701054789,-500.0,0.00016712,2]
[402534975,1768701054799,-500.0,0.00016712,2]
[402534976,1768701054809,-500.0,0.00016712,2]
[402534977,1768701054819,-500.0,0.00016712,2]
[402534978,1768701054829,-500.0,0.00016712,2]
[402534979,1768701054840,-506.52123948,0.00016712,2]
[402534980,1768701054851,-500.0,0.00016712,2]
[402534981,1768701054861,-660.87,0.00016712,2]
[402534982,1768701054871,-500.0,0.00016712,2]
[402534983,1768701054881,-500.0,0.00016712,2]
[402534984,1768701054891,-500.0,0.00016712,2]
[402534985,1768701054901,-500.0,0.00016712,2]
[402534986,1768701054911,-621.39,0.00016712,2]
[402534987,1768701054921,-500.0,0.00016712,2]
[402534988,1768701054934,-500.0,0.00016712,2]
[402534989,1768701054944,-574.94,0.00016712,2]
[402534990,1768701054955,-510.46818255,0.00016712,2]
[402534991,1768701054965,-504.67740922,0.00016712,2]
[402534992,1768701054975,-500.0,0.00016712,2]
[402534993,1768701054985,-500.0,0.00016712,2]
[402534994,1768701054995,-506.50816436,0.00016712,2]
[402534995,1768701055006,-500.0,0.00016712,2]
[402534996,1768701055016,-500.0,0.00016712,2]
[402534997,1768701055026,-504.85198309,0.00016712,2]
[402534998,1768701055036,-529.95,0.00016712,2]
[402534999,1768701055046,-500.0,0.00016712,2]
[402535000,1768701055056,-500.0,0.00016712,2]
[402535001,1768701055066,-500.0,0.00016712,2]
[402535002,1768701055075,-852.33,0.00016712,2]
[402535003,1768701055085,-507.84151662,0.00016712,2]
[402535004,1768701055095,-500.0,0.00016712,2]
[402535005,1768701055105,-500.0,0.00016712,2]
[402535006,1768701055115,-545.42,0.00016712,2]
[402535007,1768701055130,-667.78,0.00016712,2]
[402535008,1768701055139,-500.0,0.00016712,2]
[402535009,1768701055150,-500.0,0.00016712,2]
[402535010,1768701055160,-509.10581708,0.00016712,2]
[402535011,1768701055171,-530.71572441,0.00016712,2]
[402535012,1768701055181,-500.0,0.00016712,2]
[402535013,1768701055191,-500.0,0.00016712,2]
[402535014,1768701055201,-503.76661777,0.00016712,2]
[402535015,1768701055211,-500.0,0.00016712,2]
[402535016,1768701055220,-500.0,0.00016712,2]
[402535017,1768701055231,-1092.44,0.00016712,2]
[402535018,1768701055244,-500.0,0.00016712,2]
[402535019,1768701055254,-500.0,0.00016712,2]
[402535020,1768701055264,-500.0,0.00016712,2]
[402535021,1768701055274,-500.0,0.00016712,2]
[402535022,1768701055284,-500.0,0.00016712,2]
[402535023,1768701055294,-500.0,0.00016712,2]
[402535024,1768701055304,-500.0,0.00016712,2]
[402535025,1768701055489,-500.0,0.00016712,2]
[402535026,1768701055499,-500.0,0.00016712,2]
[402535027,1768701055508,-500.0,0.00016712,2]
[402535028,1768701055517,-500.0,0.00016712,2]
[402535029,1768701055527,-500.0,0.00016712,2]
[402535030,1768701055536,-767.04,0.00016712,2]
[402535031,1768701055545,-500.0,0.00016712,2]
[402535032,1768701055555,-504.72051997,0.00016712,2]
[402535033,1768701055564,-584.53,0.00016712,2]
[402535034,1768701055573,-502.68160409,0.00016712,2]
[402535035,1768701055582,-500.0,0.00016712,2]
[402535036,1768701055591,-500.0,0.00016712,2]
[402535037,1768701055601,-500.0,0.00016712,2]
[402535038,1768701055611,-500.0,0.00016712,2]
[402535039,1768701055620,-500.0,0.00016712,2]
[402535040,1768701055629,-500.0,0.00016712,2]
[402535041,1768701055639,-501.68,0.00016712,2]
[402535042,1768701055658,-500.0,0.00016712,2]
[402535043,1768701055668,-846.24,0.00016712,2]
[402535044,1768701055678,-513.14820409,0.00016712,2]
[402535045,1768701055687,-500.0,0.00016712,2]
[402535046,1768701055697,-500.0,0.00016712,2]
[402535047,1768701055706,-500.0,0.00016712,2]
[402535048,1768701055716,-504.13345043,0.00016712,2]
[402535049,1768701055725,-500.0,0.00016712,2]
[402535050,1768701055735,-500.0,0.00016712,2]
[402535051,1768701055744,-500.0,0.00016712,2]
[402535052,1768701055754,-500.0,0.00016712,2]
[402535053,1768701055764,-500.0,0.00016712,2]
[402535054,1768701055774,-537.43260463,0.00016712,2]
[402535055,1768701055783,-500.0,0.00016712,2]
[402535056,1768701055793,-500.0,0.00016712,2]
[402535057,1768701055803,-937.47,0.00016712,2]
[402535058,1768701055812,-500.13,0.00016712,2]
[402535059,1768701055821,-500.05,0.00016712,2]
[402535060,1768701055831,-500.0,0.00016712,2]
[402535061,1768701055840,-500.0,0.00016712,2]
[402535062,1768701055850,-500.0,0.00016712,2]
[402535063,1768701055859,-500.0,0.00016712,2]
[402535064,1768701055869,-500.0,0.00016712,2]
[402535065,1768701055879,-513.1013536,0.00016712,2]
[402535066,1768701055888,-500.0,0.00016712,2]
[402535067,1768701055897,-566.59,0.00016712,2]
[402535068,1768701055907,-500.0,0.00016712,2]
[402535069,1768701055916,-507.5,0.00016712,2]
[402535070,1768701055926,-500.0,0.00016712,2]
[402535071,1768701055935,-500.0,0.00016712,2]
[402535072,1768701055944,-500.0,0.00016712,2]
[402535073,1768701055954,-500.0,0.00016712,2]
[402535074,1768701055964,-500.0,0.00016712,2]
[402535075,1768701055974,-500.0,0.00016712,2]
[402535076,1768701055984,-551.18388925,0.00016712,2]
[402535077,1768701055993,-500.0,0.00016712,2]
[402535078,1768701056003,-500.0,0.00016712,2]
[402535079,1768701056012,-500.0,0.00016712,2]
[402535080,1768701056022,-500.0,0.00016712,2]
[402535081,1768701056031,-500.0,0.00016712,2]
[402535082,1768701056042,-510.44,0.00016712,2]
[402535083,1768701056051,-500.0,0.00016712,2]
[402535084,1768701056061,-500.0,0.00016712,2]
[402535085,1768701056071,-578.21,0.00016712,2]
[402535086,1768701056081,-500.0,0.00016712,2]
[402535087,1768701056091,-500.0,0.00016712,2]
[402535088,1768701056101,-500.0,0.00016712,2]
[402535089,1768701056110,-500.0,0.00016712,2]
[402535090,1768701056119,-500.0,0.00016712,2]
[402535091,1768701056129,-666.57,0.00016712,2]
[402535092,1768701056139,-500.0,0.00016712,2]
[402535093,1768701056148,-500.0,0.00016712,2]
[402535094,1768701056158,-500.0,0.00016712,2]
[402535095,1768701056167,-500.0,0.00016712,2]
[402535096,1768701056177,-500.0,0.00016712,2]
[402535097,1768701056187,-500.0,0.00016712,2]
[402535098,1768701056202,-620.71,0.00016712,2]
[402535099,1768701056211,-554.66,0.00016712,2]
[402535100,1768701056221,-564.68,0.00016712,2]
[402535101,1768701056231,-503.97797538,0.00016712,2]
[402535102,1768701056243,-500.0,0.00016712,2]
[402535103,1768701056254,-540.03492309,0.00016712,2]
[402535104,1768701056265,-500.0,0.00016712,2]
[402535105,1768701056274,-500.0,0.00016712,2]
[402535106,1768701056285,-587.68,0.00016712,2]
[402535107,1768701056295,-500.0,0.00016712,2]
[402535108,1768701056304,-500.0,0.00016712,2]
[402535109,1768701056315,-479.75743737,0.00016712,2]
[402535110,1768701056324,-500.0,0.00016712,2]
[402535111,1768701056334,-680.41,0.00016712,2]
[402535112,1768701056344,-500.0,0.00016712,2]
[402535113,1768701056354,-500.0,0.00016712,2]
[402535114,1768701056368,-500.0,0.00016712,2]
[402535115,1768701056388,-500.0,0.00016712,2]
[402535116,1768701056406,-500.0,0.00016712,2]
[402535117,1768701056416,-500.0,0.00016712,2]
[402535118,1768701056426,-500.0,0.00016712,2]
[402535119,1768701056435,-500.0,0.00016712,2]
[402535120,1768701056445,-500.0,0.00016712,2]
[402535121,1768701056455,-500.0,0.00016712,2]
[402535122,1768701056464,-201.66684037,0.00016712,2]
[402535123,1768701056474,-500.0,0.00016712,2]
[402535124,1768701056484,-500.0,0.00016712,2]
[402535125,1768701056493,-500.0,0.00016712,2]
[402535126,1768701056503,-500.0,0.00016712,2]
[402535127,1768701056512,-500.0,0.00016712,2]
[402535128,1768701056522,-500.0,0.00016712,2]
[402535129,1768701056531,-538.09712862,0.00016712,2]
[402535130,1768701056540,-500.0,0.00016712,2]
[402535131,1768701056550,-500.0,0.00016712,2]
[402535132,1768701056559,-551.84,0.00016712,2]
[402535133,1768701056568,-500.0,0.00016712,2]
[402535134,1768701056579,-562.35,0.00016712,2]
[402535135,1768701056589,-500.0,0.00016712,2]
[402535136,1768701056599,-500.0,0.00016712,2]
[402535137,1768701056608,-500.0,0.00016712,2]
[402535138,1768701056618,-500.0,0.00016712,2]
[402535139,1768701056628,-500.0,0.00016712,2]
[402535140,1768701056638,-500.0,0.00016712,2]
[402535141,1768701056647,-500.0,0.00016712,2]
[402535142,1768701056656,-500.0,0.00016712,2]
[402535143,1768701056668,-721.75,0.00016712,2]
[402535144,1768701056678,-500.0,0.00016712,2]
[402535145,1768701056688,-500.0,0.00016712,2]
[402535146,1768701056697,-500.0,0.00016712,2]
[402535147,1768701056707,-500.0,0.00016712,2]
[402535148,1768701056716,-605.02356772,0.00016712,2]
[402535149,1768701056725,-500.0,0.00016712,2]
[402535150,1768701056734,-500.0,0.00016712,2]
[402535151,1768701056744,-500.0,0.00016712,2]